[Event "Late-Titled-Tuesday-Blitz-October-24-2023"]
[Site "Chess.com"]
[Date "2023.10.24"]
[Round "5"]
[White "FabianoCaruana"]
[Black "DefiantChair"]
[Result "1-0"]
[WhiteElo "3086"]
[BlackElo "2685"]
[TimeControl "180+1"]
[EndTime "14:56:22 PDT"]
[Termination "FabianoCaruana won by resignation"]

1. b3 {[%clk 0:03:00.9]} 1... d5 {[%clk 0:02:59.5]} 2. Bb2 {[%clk 0:03:00.7]}
2... Nf6 {[%clk 0:02:59.8]} 3. d3 {[%clk 0:03:00.7]} 3... c5 {[%clk 0:02:59.3]}
4. Nd2 {[%clk 0:03:00.3]} 4... Nc6 {[%clk 0:02:59.6]} 5. Ngf3 {[%clk 0:03:00.4]}
5... d4 {[%clk 0:02:59.3]} 6. g3 {[%clk 0:02:58.4]} 6... e5 {[%clk 0:02:59.3]}
7. Bg2 {[%clk 0:02:59]} 7... Bd6 {[%clk 0:02:59.4]} 8. O-O {[%clk 0:02:59.5]}
8... O-O {[%clk 0:02:59.3]} 9. c3 {[%clk 0:02:59.1]} 9... Re8 {[%clk 0:02:51.2]}
10. Rc1 {[%clk 0:02:59.2]} 10... a5 {[%clk 0:02:49.9]} 11. a4 {[%clk 0:02:56.1]}
11... Bd7 {[%clk 0:02:47.5]} 12. Nc4 {[%clk 0:02:52.6]} 12... Bc7 {[%clk
0:02:47.4]} 13. Nfd2 {[%clk 0:02:44.7]} 13... Rc8 {[%clk 0:02:38]} 14. h3 {[%clk
0:02:21]} 14... b6 {[%clk 0:02:38]} 15. e3 {[%clk 0:02:13.1]} 15... dxc3 {[%clk
0:02:37.3]} 16. Bxc3 {[%clk 0:02:12.2]} 16... Bb8 {[%clk 0:02:19.7]} 17. Qe2
{[%clk 0:02:10.4]} 17... Nb4 {[%clk 0:02:13.9]} 18. Bxb4 {[%clk 0:02:10.1]}
18... axb4 {[%clk 0:02:12.9]} 19. Kh2 {[%clk 0:02:03.6]} 19... Bc6 {[%clk
0:01:58.1]} 20. Bxc6 {[%clk 0:01:58.2]} 20... Rxc6 {[%clk 0:01:59]} 21. e4
{[%clk 0:01:56.5]} 21... Bc7 {[%clk 0:01:53.8]} 22. Nf3 {[%clk 0:01:55.7]} 22...
Nd7 {[%clk 0:01:50.7]} 23. Kg2 {[%clk 0:01:55.6]} 23... Rh6 {[%clk 0:01:49.6]}
24. h4 {[%clk 0:01:55.5]} 24... Nb8 {[%clk 0:01:49.9]} 25. Rh1 {[%clk
0:01:42.8]} 25... Nc6 {[%clk 0:01:49.7]} 26. h5 {[%clk 0:01:42.8]} 26... Rf6
{[%clk 0:01:48.8]} 27. h6 {[%clk 0:01:37.3]} 27... g6 {[%clk 0:01:47.5]} 28. Ne3
{[%clk 0:01:36.7]} 28... Rd6 {[%clk 0:01:45.4]} 29. Rhd1 {[%clk 0:01:29.9]}
29... Na5 {[%clk 0:01:23.8]} 30. Qc2 {[%clk 0:01:25.1]} 30... Nc6 {[%clk
0:01:14.5]} 31. Qc4 {[%clk 0:01:24.1]} 31... Qf6 {[%clk 0:01:06.4]} 32. Nd5
{[%clk 0:01:22.3]} 32... Qd8 {[%clk 0:01:06.6]} 33. Qb5 {[%clk 0:01:15.9]} 33...
Qb8 {[%clk 0:00:50]} 34. a5 {[%clk 0:01:10.3]} 34... Rxd5 {[%clk 0:00:29.5]} 35.
exd5 {[%clk 0:01:11.2]} 35... Nxa5 {[%clk 0:00:29.6]} 36. Nd2 {[%clk 0:00:53.4]}
36... Rd8 {[%clk 0:00:26.5]} 37. Ne4 {[%clk 0:00:31.5]} 37... Kf8 {[%clk
0:00:24.5]} 38. Ra1 {[%clk 0:00:24.2]} 38... Nxb3 {[%clk 0:00:20.7]} 39. Qc6
{[%clk 0:00:23.9]} 39... Nd4 {[%clk 0:00:18.5]} 40. Qf6 {[%clk 0:00:23.1]} 40...
Rxd5 {[%clk 0:00:18.1]} 41. Ng5 {[%clk 0:00:19.5]} 41... Rd7 {[%clk 0:00:16.3]}
42. Nxh7+ {[%clk 0:00:19.8]} 42... Ke8 {[%clk 0:00:15.9]} 43. Ng5 {[%clk
0:00:18.5]} 43... Bd8 {[%clk 0:00:14.2]} 44. Qh8+ {[%clk 0:00:14.7]} 44... Ke7
{[%clk 0:00:14.8]} 45. h7 {[%clk 0:00:13.7]} 45... Rb7 {[%clk 0:00:14]} 46. Qg7
{[%clk 0:00:11.5]} 46... Nf5 {[%clk 0:00:14.3]} 47. Qxf7+ {[%clk 0:00:11.3]}
47... Kd6 {[%clk 0:00:14.8]} 48. Qe6+ {[%clk 0:00:11.8]} 48... Kc7 {[%clk
0:00:14.9]} 49. h8=Q {[%clk 0:00:12.1]} 49... Bxg5 {[%clk 0:00:15.2]} 50. Qhxe5+
{[%clk 0:00:11.7]} 1-0

[Event "Late-Titled-Tuesday-Blitz-October-24-2023"]
[Site "Chess.com"]
[Date "2023.10.24"]
[Round "5"]
[White "HeroRubiksCube"]
[Black "Chempiblinka"]
[Result "0-1"]
[WhiteElo "2520"]
[BlackElo "2327"]
[TimeControl "180+1"]
[EndTime "14:56:23 PDT"]
[Termination "Chempiblinka won by resignation"]

1. e4 {[%clk 0:03:00.9]} 1... c5 {[%clk 0:02:55.6]} 2. Nc3 {[%clk 0:03:00.6]}
2... Nc6 {[%clk 0:02:54.5]} 3. Nge2 {[%clk 0:03:00.3]} 3... g6 {[%clk
0:02:52.7]} 4. g3 {[%clk 0:02:58.6]} 4... Bg7 {[%clk 0:02:52.2]} 5. Bg2 {[%clk
0:02:59.2]} 5... e6 {[%clk 0:02:52.3]} 6. O-O {[%clk 0:02:59.8]} 6... Nge7
{[%clk 0:02:53]} 7. d3 {[%clk 0:03:00.4]} 7... O-O {[%clk 0:02:53.5]} 8. Be3
{[%clk 0:03:01]} 8... d6 {[%clk 0:02:53.2]} 9. d4 {[%clk 0:03:01.1]} 9... cxd4
{[%clk 0:02:52.7]} 10. Nxd4 {[%clk 0:03:02]} 10... a6 {[%clk 0:02:40.3]} 11. Qd2
{[%clk 0:02:58.9]} 11... Rb8 {[%clk 0:02:39.1]} 12. Rad1 {[%clk 0:02:57.3]}
12... Ne5 {[%clk 0:02:19.5]} 13. Qe2 {[%clk 0:02:51.5]} 13... Qc7 {[%clk
0:02:17.9]} 14. Bc1 {[%clk 0:02:05.4]} 14... b5 {[%clk 0:02:16.5]} 15. a3 {[%clk
0:01:47.7]} 15... N7c6 {[%clk 0:02:06.5]} 16. Nxc6 {[%clk 0:01:43.9]} 16... Qxc6
{[%clk 0:02:02.7]} 17. Bf4 {[%clk 0:01:36.2]} 17... Bb7 {[%clk 0:01:55.6]} 18.
Bxe5 {[%clk 0:01:28.9]} 18... Bxe5 {[%clk 0:01:56.1]} 19. Rd3 {[%clk 0:01:29.4]}
19... a5 {[%clk 0:01:45.9]} 20. f4 {[%clk 0:01:24.6]} 20... Bg7 {[%clk
0:01:42.6]} 21. Qd2 {[%clk 0:01:02.4]} 21... Rfd8 {[%clk 0:01:31.9]} 22. Rd1
{[%clk 0:00:56.7]} 22... b4 {[%clk 0:01:20.8]} 23. axb4 {[%clk 0:00:56.5]} 23...
axb4 {[%clk 0:01:21.7]} 24. Ne2 {[%clk 0:00:57.1]} 24... Qc5+ {[%clk 0:01:17.3]}
25. Kh1 {[%clk 0:00:55.3]} 25... Bxb2 {[%clk 0:01:17]} 26. Rxd6 {[%clk
0:00:53.2]} 26... Rdc8 {[%clk 0:00:59]} 27. f5 {[%clk 0:00:37.2]} 27... exf5
{[%clk 0:00:57.7]} 28. exf5 {[%clk 0:00:33.5]} 28... Qf2 {[%clk 0:00:44.7]} 29.
Bxb7 {[%clk 0:00:30.3]} 29... Rxb7 {[%clk 0:00:45.6]} 30. Nf4 {[%clk 0:00:27.1]}
30... Qf3+ {[%clk 0:00:40.7]} 31. Kg1 {[%clk 0:00:22]} 31... Rbb8 {[%clk
0:00:26.9]} 32. fxg6 {[%clk 0:00:21.8]} 32... hxg6 {[%clk 0:00:26.3]} 33. Rd3
{[%clk 0:00:22]} 33... Qe4 {[%clk 0:00:23.4]} 34. Nd5 {[%clk 0:00:21.1]} 34...
Re8 {[%clk 0:00:17.5]} 35. Re3 {[%clk 0:00:18.4]} 35... Qc4 {[%clk 0:00:15.4]}
36. Qd3 {[%clk 0:00:11.8]} 36... Qxd3 {[%clk 0:00:15.2]} 37. Rdxd3 {[%clk
0:00:11.2]} 37... Kg7 {[%clk 0:00:15.5]} 38. Rxe8 {[%clk 0:00:10.6]} 38... Rxe8
{[%clk 0:00:16.4]} 39. Kf2 {[%clk 0:00:11]} 39... Ba3 {[%clk 0:00:15.2]} 40. Nf4
{[%clk 0:00:09.6]} 40... Rc8 {[%clk 0:00:15]} 41. Rd2 {[%clk 0:00:09]} 41... Bb2
{[%clk 0:00:14.2]} 42. Nd3 {[%clk 0:00:08.1]} 42... Bc3 {[%clk 0:00:14.2]} 43.
Re2 {[%clk 0:00:08.3]} 43... Bd4+ {[%clk 0:00:14.1]} 44. Kf3 {[%clk 0:00:08.7]}
44... Bc3 {[%clk 0:00:13.3]} 45. h4 {[%clk 0:00:08.9]} 45... Rd8 {[%clk
0:00:13.5]} 46. g4 {[%clk 0:00:08.1]} 46... b3 {[%clk 0:00:13.6]} 47. Nf4 {[%clk
0:00:04.1]} 47... b2 {[%clk 0:00:12.1]} 48. Re1 {[%clk 0:00:04.7]} 48... Bxe1
{[%clk 0:00:12]} 0-1

[Event "Late-Titled-Tuesday-Blitz-October-24-2023"]
[Site "Chess.com"]
[Date "2023.10.24"]
[Round "5"]
[White "Emeraldddd"]
[Black "KVAIDAN"]
[Result "1-0"]
[WhiteElo "2610"]
[BlackElo "2417"]
[TimeControl "180+1"]
[EndTime "14:56:24 PDT"]
[Termination "Emeraldddd won by checkmate"]

1. e4 {[%clk 0:03:00.9]} 1... e5 {[%clk 0:02:49.8]} 2. Bc4 {[%clk 0:03:00.5]}
2... d6 {[%clk 0:02:45.9]} 3. Nf3 {[%clk 0:03:00.6]} 3... Be6 {[%clk 0:02:44.2]}
4. Bb3 {[%clk 0:02:58.7]} 4... Nc6 {[%clk 0:02:43.9]} 5. O-O {[%clk 0:02:58.5]}
5... Nge7 {[%clk 0:02:43.1]} 6. d4 {[%clk 0:02:57.9]} 6... exd4 {[%clk 0:02:43]}
7. Bg5 {[%clk 0:02:50.2]} 7... h6 {[%clk 0:02:40]} 8. Bh4 {[%clk 0:02:50.5]}
8... g5 {[%clk 0:02:37.8]} 9. Bg3 {[%clk 0:02:51]} 9... Bg7 {[%clk 0:02:38.3]}
10. Nbd2 {[%clk 0:02:43.3]} 10... Qd7 {[%clk 0:02:37.9]} 11. Ba4 {[%clk
0:02:38.2]} 11... a6 {[%clk 0:02:34.8]} 12. Re1 {[%clk 0:02:28.6]} 12... b5
{[%clk 0:02:34.6]} 13. Bb3 {[%clk 0:02:28.9]} 13... Ng6 {[%clk 0:02:30.4]} 14.
a4 {[%clk 0:02:25.7]} 14... b4 {[%clk 0:02:30]} 15. a5 {[%clk 0:02:26]} 15...
Qe7 {[%clk 0:02:25.2]} 16. Ba4 {[%clk 0:02:25.9]} 16... Bd7 {[%clk 0:02:20]} 17.
Nb3 {[%clk 0:02:26]} 17... h5 {[%clk 0:02:17.4]} 18. h3 {[%clk 0:01:51.7]} 18...
g4 {[%clk 0:02:09.5]} 19. hxg4 {[%clk 0:01:51.7]} 19... hxg4 {[%clk 0:02:09.2]}
20. Nfxd4 {[%clk 0:01:52.4]} 20... Nxd4 {[%clk 0:02:08.4]} 21. Nxd4 {[%clk
0:01:52.7]} 21... Bxa4 {[%clk 0:02:08.1]} 22. Rxa4 {[%clk 0:01:53.6]} 22... Ne5
{[%clk 0:02:04.8]} 23. Nf5 {[%clk 0:01:50]} 23... Qg5 {[%clk 0:02:02.2]} 24.
Rxb4 {[%clk 0:01:31.4]} 24... Kf8 {[%clk 0:02:00]} 25. Rb7 {[%clk 0:01:21.8]}
25... Qh5 {[%clk 0:01:59.6]} 26. Kf1 {[%clk 0:01:10.8]} 26... Nf3 {[%clk
0:01:51.2]} 27. gxf3 {[%clk 0:01:02.1]} 27... gxf3 {[%clk 0:01:49.9]} 28. Nh4
{[%clk 0:00:53.5]} 28... Qg4 {[%clk 0:01:48.2]} 29. Qxf3 {[%clk 0:00:52.4]}
29... Rxh4 {[%clk 0:01:47.1]} 30. Qxg4 {[%clk 0:00:49.6]} 30... Rxg4 {[%clk
0:01:47.1]} 31. Rxc7 {[%clk 0:00:50.2]} 31... Bxb2 {[%clk 0:01:47.1]} 32. Bxd6+
{[%clk 0:00:49.7]} 32... Kg7 {[%clk 0:01:45]} 33. f3 {[%clk 0:00:49.4]} 33...
Rh4 {[%clk 0:01:43.3]} 34. Ke2 {[%clk 0:00:43.6]} 34... Rd8 {[%clk 0:01:40.3]}
35. Rg1+ {[%clk 0:00:42.9]} 35... Kf6 {[%clk 0:01:37]} 36. Be7+ {[%clk
0:00:42.5]} 36... Ke6 {[%clk 0:01:36.4]} 37. Bxh4 {[%clk 0:00:14]} 37... Rh8
{[%clk 0:01:29.1]} 38. Bf2 {[%clk 0:00:11.8]} 38... Rh2 {[%clk 0:01:28.4]} 39.
Rd1 {[%clk 0:00:12.2]} 39... Be5 {[%clk 0:01:24]} 40. Rc6+ {[%clk 0:00:11.9]}
40... Ke7 {[%clk 0:01:24.5]} 41. Ke3 {[%clk 0:00:12.6]} 41... Bf6 {[%clk
0:01:19.9]} 42. Rd7+ {[%clk 0:00:11.3]} 42... Kxd7 {[%clk 0:01:19.1]} 43. Rxf6
{[%clk 0:00:12.2]} 43... Rh1 {[%clk 0:01:18.9]} 44. Rxa6 {[%clk 0:00:12.4]}
44... Rb1 {[%clk 0:01:18]} 45. Ra7+ {[%clk 0:00:12.8]} 45... Ke6 {[%clk
0:01:17.2]} 46. a6 {[%clk 0:00:13.2]} 46... Ra1 {[%clk 0:01:14.7]} 47. Ra8
{[%clk 0:00:13.8]} 47... f5 {[%clk 0:01:13.1]} 48. a7 {[%clk 0:00:14.4]} 48...
Kf7 {[%clk 0:01:10.7]} 49. exf5 {[%clk 0:00:14.2]} 49... Ra2 {[%clk 0:01:06.1]}
50. Kd2 {[%clk 0:00:14.2]} 50... Ra4 {[%clk 0:01:03.1]} 51. Rh8 {[%clk
0:00:14.1]} 51... Kf6 {[%clk 0:01:02.2]} 52. a8=Q {[%clk 0:00:12.7]} 52... Kxf5
{[%clk 0:01:03.1]} 53. Qe4+ {[%clk 0:00:10.8]} 53... Rxe4 {[%clk 0:01:01.5]} 54.
fxe4+ {[%clk 0:00:11.7]} 54... Kxe4 {[%clk 0:01:01.9]} 55. Re8+ {[%clk
0:00:11.7]} 55... Kd5 {[%clk 0:01:02.3]} 56. Re5+ {[%clk 0:00:12.4]} 56... Kc4
{[%clk 0:01:02.6]} 57. Rc5+ {[%clk 0:00:11.9]} 57... Kb4 {[%clk 0:01:02.9]} 58.
Rc4+ {[%clk 0:00:12.6]} 58... Kb5 {[%clk 0:01:03]} 59. Rb4+ {[%clk 0:00:12.5]}
59... Kxb4 {[%clk 0:01:02.8]} 60. c3+ {[%clk 0:00:12.8]} 60... Kc4 {[%clk
0:01:03.4]} 61. Kc2 {[%clk 0:00:13.5]} 61... Kd5 {[%clk 0:01:03.6]} 62. Kd3
{[%clk 0:00:14.4]} 62... Kc6 {[%clk 0:01:04.2]} 63. c4 {[%clk 0:00:15.3]} 63...
Kd6 {[%clk 0:01:04.8]} 64. Kd4 {[%clk 0:00:16.2]} 64... Kc6 {[%clk 0:01:05.5]}
65. c5 {[%clk 0:00:17.1]} 65... Kd7 {[%clk 0:01:05.8]} 66. Kd5 {[%clk 0:00:18]}
66... Kc7 {[%clk 0:01:06.5]} 67. c6 {[%clk 0:00:18.9]} 67... Kd8 {[%clk
0:01:06.3]} 68. Kd6 {[%clk 0:00:19.8]} 68... Kc8 {[%clk 0:01:06.8]} 69. c7
{[%clk 0:00:18.2]} 69... Kb7 {[%clk 0:01:07]} 70. Kd7 {[%clk 0:00:18.5]} 70...
Ka6 {[%clk 0:01:07]} 71. c8=Q+ {[%clk 0:00:19.2]} 71... Kb5 {[%clk 0:01:07]} 72.
Qc6+ {[%clk 0:00:19.8]} 72... Kb4 {[%clk 0:01:07.3]} 73. Qc5+ {[%clk 0:00:19.9]}
73... Kb3 {[%clk 0:01:07.6]} 74. Bd4 {[%clk 0:00:20.3]} 74... Ka2 {[%clk
0:01:05]} 75. Qb5 {[%clk 0:00:18.9]} 75... Ka3 {[%clk 0:01:03.6]} 76. Bh8 {[%clk
0:00:19.8]} 76... Ka2 {[%clk 0:01:03.2]} 77. Kd6 {[%clk 0:00:20.7]} 77... Ka3
{[%clk 0:01:02.2]} 78. Kd5 {[%clk 0:00:21.6]} 78... Ka2 {[%clk 0:01:02.6]} 79.
Kd4 {[%clk 0:00:22.5]} 79... Ka3 {[%clk 0:01:01.9]} 80. Kc3 {[%clk 0:00:23.4]}
80... Ka2 {[%clk 0:01:02.1]} 81. Bg7 {[%clk 0:00:22.8]} 81... Ka3 {[%clk
0:01:01.8]} 82. Bf8+ {[%clk 0:00:23.3]} 82... Ka2 {[%clk 0:01:02]} 83. Qb2#
{[%clk 0:00:23.8]} 1-0

[Event "Late-Titled-Tuesday-Blitz-October-24-2023"]
[Site "Chess.com"]
[Date "2023.10.24"]
[Round "5"]
[White "effefe"]
[Black "DonJuanEGenaro"]
[Result "1-0"]
[WhiteElo "2341"]
[BlackElo "1851"]
[TimeControl "180+1"]
[EndTime "14:56:25 PDT"]
[Termination "effefe won on time"]

1. d4 {[%clk 0:03:00.9]} 1... Nf6 {[%clk 0:02:58.9]} 2. c4 {[%clk 0:02:58.9]}
2... c5 {[%clk 0:02:58.5]} 3. d5 {[%clk 0:02:58.3]} 3... e6 {[%clk 0:02:58.7]}
4. Nc3 {[%clk 0:02:58]} 4... exd5 {[%clk 0:02:58.9]} 5. cxd5 {[%clk 0:02:58.3]}
5... d6 {[%clk 0:02:59.2]} 6. e4 {[%clk 0:02:58.8]} 6... g6 {[%clk 0:02:59.4]}
7. f4 {[%clk 0:02:58.6]} 7... Bg7 {[%clk 0:02:59.5]} 8. Bb5+ {[%clk 0:02:58.9]}
8... Bd7 {[%clk 0:02:57.5]} 9. e5 {[%clk 0:02:54.6]} 9... dxe5 {[%clk
0:02:45.2]} 10. fxe5 {[%clk 0:02:55.5]} 10... Ng8 {[%clk 0:02:26.1]} 11. e6
{[%clk 0:02:44.6]} 11... Qh4+ {[%clk 0:02:09.7]} 12. Kf1 {[%clk 0:02:26.4]}
12... Bxb5+ {[%clk 0:02:08.4]} 13. Nxb5 {[%clk 0:02:18.9]} 13... Qc4+ {[%clk
0:02:01.8]} 14. Qe2 {[%clk 0:02:17]} 14... Qxe2+ {[%clk 0:02:01.6]} 15. Nxe2
{[%clk 0:02:15.1]} 15... fxe6 {[%clk 0:01:53.5]} 16. Nc7+ {[%clk 0:02:06.6]}
16... Kd7 {[%clk 0:01:51.2]} 17. Nxa8 {[%clk 0:02:06.3]} 17... exd5 {[%clk
0:01:51.1]} 18. Bf4 {[%clk 0:02:02.7]} 18... Na6 {[%clk 0:01:50.6]} 19. Rd1
{[%clk 0:01:52.7]} 19... Ne7 {[%clk 0:01:45.8]} 20. Nc3 {[%clk 0:01:34.1]} 20...
Bxc3 {[%clk 0:01:40.8]} 21. bxc3 {[%clk 0:01:33.2]} 21... Rf8 {[%clk 0:01:34.8]}
22. g3 {[%clk 0:01:20.2]} 22... g5 {[%clk 0:01:33.8]} 23. Rb1 {[%clk 0:01:08.6]}
23... Kc6 {[%clk 0:01:26.6]} 24. Re1 {[%clk 0:00:57.7]} 24... Kd7 {[%clk
0:01:12.1]} 25. Rb1 {[%clk 0:00:56.7]} 25... gxf4 {[%clk 0:00:54.5]} 26. Rxb7+
{[%clk 0:00:54.2]} 26... Kd6 {[%clk 0:00:52.3]} 27. Rxa7 {[%clk 0:00:47.3]}
27... fxg3+ {[%clk 0:00:42.2]} 28. Kg2 {[%clk 0:00:46.7]} 28... Rf2+ {[%clk
0:00:40]} 29. Kxg3 {[%clk 0:00:44.5]} 29... Rxa2 {[%clk 0:00:39.6]} 30. Nc7
{[%clk 0:00:23.1]} 30... Nc6 {[%clk 0:00:29.4]} 31. Rxa6 {[%clk 0:00:19.7]}
31... Rc2 {[%clk 0:00:22.3]} 32. Nb5+ {[%clk 0:00:18.4]} 32... Kd7 {[%clk
0:00:21.7]} 33. Rf1 {[%clk 0:00:15]} 33... Ne5 {[%clk 0:00:15.8]} 34. Rd6+
{[%clk 0:00:09.8]} 34... Ke7 {[%clk 0:00:15.1]} 35. Rxd5 {[%clk 0:00:10]} 35...
Ng6 {[%clk 0:00:14.7]} 36. Re1+ {[%clk 0:00:08.4]} 36... Kf6 {[%clk 0:00:13.2]}
37. Rd6+ {[%clk 0:00:07.2]} 37... Kg5 {[%clk 0:00:13.1]} 38. Rd5+ {[%clk
0:00:06.8]} 38... Kf6 {[%clk 0:00:10.9]} 39. Rxc5 {[%clk 0:00:06.5]} 39... Ne7
{[%clk 0:00:08.7]} 40. Rf1+ {[%clk 0:00:05.4]} 40... Kg6 {[%clk 0:00:08.1]} 41.
Re5 {[%clk 0:00:04.7]} 41... Ng8 {[%clk 0:00:03.5]} 42. Re6+ {[%clk 0:00:03.8]}
42... Kg7 {[%clk 0:00:03.4]} 43. h4 {[%clk 0:00:03.9]} 43... Rd2 {[%clk
0:00:02.5]} 44. h5 {[%clk 0:00:04]} 44... h6 {[%clk 0:00:01.7]} 45. Rf3 {[%clk
0:00:03.8]} 1-0

[Event "Late-Titled-Tuesday-Blitz-October-24-2023"]
[Site "Chess.com"]
[Date "2023.10.24"]
[Round "5"]
[White "santosalberto1987"]
[Black "karinachess1"]
[Result "0-1"]
[WhiteElo "2431"]
[BlackElo "2635"]
[TimeControl "180+1"]
[EndTime "14:56:27 PDT"]
[Termination "karinachess1 won on time"]

1. e4 {[%clk 0:03:00.9]} 1... e5 {[%clk 0:03:00]} 2. Nf3 {[%clk 0:02:58.3]} 2...
Nc6 {[%clk 0:03:00.2]} 3. Bc4 {[%clk 0:02:58.7]} 3... Nf6 {[%clk 0:02:59.8]} 4.
d3 {[%clk 0:02:58.3]} 4... h6 {[%clk 0:02:59.8]} 5. c3 {[%clk 0:02:56.5]} 5...
d6 {[%clk 0:03:00]} 6. O-O {[%clk 0:02:55.1]} 6... g5 {[%clk 0:03:00.1]} 7. Bb3
{[%clk 0:02:54.9]} 7... Bg7 {[%clk 0:02:59.7]} 8. Re1 {[%clk 0:02:51.6]} 8... g4
{[%clk 0:02:59.9]} 9. Nfd2 {[%clk 0:02:50.6]} 9... h5 {[%clk 0:02:51.9]} 10. Nf1
{[%clk 0:02:50.6]} 10... Be6 {[%clk 0:02:45.2]} 11. f4 {[%clk 0:02:50.3]} 11...
gxf3 {[%clk 0:02:38]} 12. Qxf3 {[%clk 0:02:50.1]} 12... Qd7 {[%clk 0:02:35.4]}
13. Bg5 {[%clk 0:02:45.3]} 13... Nh7 {[%clk 0:02:25.8]} 14. Bh4 {[%clk
0:02:44.1]} 14... Bg4 {[%clk 0:02:16.7]} 15. Qf2 {[%clk 0:02:42.2]} 15... f6
{[%clk 0:02:17]} 16. Ne3 {[%clk 0:02:41.7]} 16... O-O-O {[%clk 0:02:08.5]} 17.
Nd2 {[%clk 0:02:31.7]} 17... Ng5 {[%clk 0:02:04.5]} 18. Nxg4 {[%clk 0:02:17.7]}
18... hxg4 {[%clk 0:02:03.3]} 19. Bxg5 {[%clk 0:02:16.3]} 19... fxg5 {[%clk
0:02:04.2]} 20. Rf1 {[%clk 0:02:05.6]} 20... Rdf8 {[%clk 0:02:00.7]} 21. Qg3
{[%clk 0:02:02.1]} 21... Rf4 {[%clk 0:02:00.5]} 22. Nc4 {[%clk 0:01:56.8]} 22...
Ne7 {[%clk 0:01:48.2]} 23. Ne3 {[%clk 0:01:55.7]} 23... Rhf8 {[%clk 0:01:45]}
24. Nd5 {[%clk 0:01:46.3]} 24... Nxd5 {[%clk 0:01:30.1]} 25. Bxd5 {[%clk
0:01:47.2]} 25... c6 {[%clk 0:01:25.3]} 26. Bb3 {[%clk 0:01:44.4]} 26... Qc7
{[%clk 0:01:21.2]} 27. Qe3 {[%clk 0:01:43.7]} 27... Bh6 {[%clk 0:01:15.2]} 28.
Qxa7 {[%clk 0:01:40.4]} 28... Kd7 {[%clk 0:01:07.9]} 29. g3 {[%clk 0:01:28.5]}
29... Rf3 {[%clk 0:01:05.3]} 30. Qa4 {[%clk 0:01:14.6]} 30... Rxd3 {[%clk
0:00:48.6]} 31. Rxf8 {[%clk 0:01:12.5]} 31... Bxf8 {[%clk 0:00:49.5]} 32. Qc4
{[%clk 0:01:11.3]} 32... Qb6+ {[%clk 0:00:44.9]} 33. Kh1 {[%clk 0:01:01.6]}
33... Rf3 {[%clk 0:00:42.1]} 34. Qe6+ {[%clk 0:00:52.7]} 34... Kc7 {[%clk
0:00:42.3]} 35. Qxg4 {[%clk 0:00:53.1]} 35... Qe3 {[%clk 0:00:37.8]} 36. Bc4
{[%clk 0:00:38.7]} 36... Rf2 {[%clk 0:00:31.8]} 37. Rf1 {[%clk 0:00:35.4]} 37...
d5 {[%clk 0:00:12.3]} 38. exd5 {[%clk 0:00:31.1]} 38... cxd5 {[%clk 0:00:12.6]}
39. Bb5 {[%clk 0:00:29.8]} 39... Bc5 {[%clk 0:00:10.6]} 40. Rxf2 {[%clk
0:00:16.7]} 40... Qxf2 {[%clk 0:00:11.5]} 41. Qd1 {[%clk 0:00:17.2]} 41... Kd6
{[%clk 0:00:08.1]} 42. Qf1 {[%clk 0:00:17]} 42... Qxb2 {[%clk 0:00:05.7]} 43.
Qf6+ {[%clk 0:00:16.1]} 43... Kc7 {[%clk 0:00:05.3]} 44. Qxe5+ {[%clk
0:00:16.7]} 44... Kb6 {[%clk 0:00:04.9]} 45. Bf1 {[%clk 0:00:17]} 45... Qf2
{[%clk 0:00:04.6]} 46. Qe6+ {[%clk 0:00:13.2]} 46... Ka7 {[%clk 0:00:04.8]} 0-1

[Event "Late-Titled-Tuesday-Blitz-October-24-2023"]
[Site "Chess.com"]
[Date "2023.10.24"]
[Round "5"]
[White "alexrustemov"]
[Black "Grischuk"]
[Result "1/2-1/2"]
[WhiteElo "2801"]
[BlackElo "2989"]
[TimeControl "180+1"]
[EndTime "14:56:28 PDT"]
[Termination "Game drawn by repetition"]

1. d4 {[%clk 0:02:58.4]} 1... e6 {[%clk 0:03:00.1]} 2. c4 {[%clk 0:02:58.1]}
2... b6 {[%clk 0:03:00.4]} 3. Nf3 {[%clk 0:02:57.5]} 3... Bb7 {[%clk 0:03:00.1]}
4. a3 {[%clk 0:02:56.6]} 4... f5 {[%clk 0:02:57.3]} 5. Nc3 {[%clk 0:02:56.1]}
5... Nf6 {[%clk 0:02:57.1]} 6. g3 {[%clk 0:02:55.1]} 6... Ne4 {[%clk 0:02:56]}
7. Bd2 {[%clk 0:02:52.3]} 7... Be7 {[%clk 0:02:50.9]} 8. Bg2 {[%clk 0:02:51.9]}
8... O-O {[%clk 0:02:49.4]} 9. O-O {[%clk 0:02:51.9]} 9... Bf6 {[%clk
0:02:49.3]} 10. Rc1 {[%clk 0:02:49.1]} 10... Qe7 {[%clk 0:02:36.8]} 11. Qc2
{[%clk 0:02:35.8]} 11... Nxc3 {[%clk 0:02:31.7]} 12. Bxc3 {[%clk 0:02:35]} 12...
Be4 {[%clk 0:02:31.8]} 13. Qd2 {[%clk 0:02:34.3]} 13... a5 {[%clk 0:02:26.6]}
14. Rfd1 {[%clk 0:02:28.5]} 14... a4 {[%clk 0:02:11.1]} 15. Bb4 {[%clk
0:02:16.2]} 15... c5 {[%clk 0:02:10.1]} 16. Bc3 {[%clk 0:02:07.3]} 16... Ra7
{[%clk 0:02:07.8]} 17. Ne5 {[%clk 0:01:58.2]} 17... Bxg2 {[%clk 0:01:57.6]} 18.
Kxg2 {[%clk 0:01:59.1]} 18... Rc8 {[%clk 0:01:16]} 19. Nf3 {[%clk 0:01:46]}
19... Nc6 {[%clk 0:01:08.2]} 20. d5 {[%clk 0:01:41.9]} 20... Na5 {[%clk
0:01:04.9]} 21. dxe6 {[%clk 0:01:31.5]} 21... dxe6 {[%clk 0:00:50.6]} 22. Bxf6
{[%clk 0:01:15.1]} 22... Qxf6 {[%clk 0:00:50.6]} 23. Rc3 {[%clk 0:01:12.1]}
23... Raa8 {[%clk 0:00:33.4]} 24. Qc2 {[%clk 0:01:11.7]} 24... Nb3 {[%clk
0:00:27.4]} 25. Rcd3 {[%clk 0:01:11.5]} 25... Rd8 {[%clk 0:00:25.9]} 26. e4
{[%clk 0:00:46]} 26... Nd4 {[%clk 0:00:13.9]} 27. Nxd4 {[%clk 0:00:34.4]} 27...
cxd4 {[%clk 0:00:14.8]} 28. exf5 {[%clk 0:00:31.2]} 28... Qxf5 {[%clk
0:00:15.2]} 29. Qe2 {[%clk 0:00:25.3]} 29... e5 {[%clk 0:00:15.3]} 30. f4 {[%clk
0:00:18.9]} 30... exf4 {[%clk 0:00:14.6]} 31. Rxd4 {[%clk 0:00:18.9]} 31... Rxd4
{[%clk 0:00:13.7]} 32. Rxd4 {[%clk 0:00:19.7]} 32... fxg3 {[%clk 0:00:13.5]} 33.
hxg3 {[%clk 0:00:19.5]} 33... h6 {[%clk 0:00:12.2]} 34. Qf3 {[%clk 0:00:14.8]}
34... Qxf3+ {[%clk 0:00:09.4]} 35. Kxf3 {[%clk 0:00:15]} 35... Rc8 {[%clk
0:00:09.4]} 36. Rd6 {[%clk 0:00:13.6]} 36... Rxc4 {[%clk 0:00:09.2]} 37. Rxb6
{[%clk 0:00:13.9]} 37... Kh7 {[%clk 0:00:08.7]} 38. Kg2 {[%clk 0:00:14]} 38...
Rc2+ {[%clk 0:00:08]} 39. Kh3 {[%clk 0:00:14]} 39... h5 {[%clk 0:00:07.6]} 40.
b3 {[%clk 0:00:13.7]} 40... axb3 {[%clk 0:00:07.1]} 41. Rxb3 {[%clk 0:00:14]}
41... Ra2 {[%clk 0:00:07.3]} 42. g4 {[%clk 0:00:12.9]} 42... Kh6 {[%clk
0:00:06]} 43. gxh5 {[%clk 0:00:12.9]} 43... Kxh5 {[%clk 0:00:06.6]} 44. Rb5+
{[%clk 0:00:12.8]} 44... g5 {[%clk 0:00:06.8]} 45. Ra5 {[%clk 0:00:13.2]} 45...
Rb2 {[%clk 0:00:05.8]} 46. Ra4 {[%clk 0:00:09.9]} 46... Rb3+ {[%clk 0:00:05.5]}
47. Kg2 {[%clk 0:00:10.2]} 47... g4 {[%clk 0:00:04.9]} 48. Ra8 {[%clk
0:00:10.3]} 48... Kh4 {[%clk 0:00:04.6]} 49. Rh8+ {[%clk 0:00:09.5]} 49... Kg5
{[%clk 0:00:05.1]} 50. Rg8+ {[%clk 0:00:10.1]} 50... Kh4 {[%clk 0:00:05.7]} 51.
Rh8+ {[%clk 0:00:10.4]} 51... Kg5 {[%clk 0:00:06.3]} 52. Rg8+ {[%clk 0:00:11]}
52... Kh4 {[%clk 0:00:07]} 53. Rh8+ {[%clk 0:00:11.5]} 1/2-1/2